[Event "Titled Tuesday Blitz November 16 2021"]
[White "Sadhwani, Raunak"]
[Black "Zubov, Alexander"]
[WhiteFideId "35093487"]
[BlackFideId "14109409"]
[WhiteElo "2517"]
[BlackElo "2685"]
[Result "0-1"]
[Round "07"]
[TimeControl "180+1"]
[Date "2021.11.16"]
[WhiteClock "0:00:06"]
[BlackClock "0:00:05"]

1. c4 {[%clk 0:03:00]}  c5 {[%clk 0:02:59]} 2. Nc3 {[%clk 0:03:00]}  g6 {[%clk 0:02:59]} 3. Nf3 {[%clk 0:02:56]}  Bg7 {[%clk 0:02:58]} 4. e3 {[%clk 0:02:55]}  Nf6 {[%clk 0:02:58]} 5. d4 {[%clk 0:02:55]}  cxd4 {[%clk 0:02:58]} 6. exd4 {[%clk 0:02:55]}  d5 {[%clk 0:02:58]} 7. Bg5 {[%clk 0:02:52]}  O-O {[%clk 0:02:43]} 8. Bxf6 {[%clk 0:02:39]}  exf6 {[%clk 0:02:43]} 9. Nxd5 {[%clk 0:02:36]}  Bg4 {[%clk 0:02:42]} 10. Be2 {[%clk 0:02:29]}  Nc6 {[%clk 0:02:41]} 11. Ne3 {[%clk 0:02:11]}  Bxf3 {[%clk 0:02:39]} 12. Bxf3 {[%clk 0:02:12]}  Nxd4 {[%clk 0:02:37]} 13. O-O {[%clk 0:02:11]}  f5 {[%clk 0:02:29]} 14. Rb1 {[%clk 0:02:07]}  Rb8 {[%clk 0:02:15]} 15. Bd5 {[%clk 0:02:07]}  b5 {[%clk 0:02:09]} 16. Nc2 {[%clk 0:01:55]}  bxc4 {[%clk 0:02:01]} 17. Bxc4 {[%clk 0:01:55]}  Qc7 {[%clk 0:01:46]} 18. b3 {[%clk 0:01:28]}  Rfd8 {[%clk 0:01:25]} 19. Nxd4 {[%clk 0:01:28]}  Rxd4 {[%clk 0:01:24]} 20. Qe2 {[%clk 0:01:24]}  Rbd8 {[%clk 0:01:21]} 21. Rbd1 {[%clk 0:01:20]}  h5 {[%clk 0:01:15]} 22. Rxd4 {[%clk 0:01:14]}  Bxd4 {[%clk 0:01:14]} 23. Rd1 {[%clk 0:01:13]}  Qf4 {[%clk 0:00:59]} 24. Re1 {[%clk 0:00:52]}  Kg7 {[%clk 0:00:45]} 25. g3 {[%clk 0:00:50]}  Qc7 {[%clk 0:00:42]} 26. Rd1 {[%clk 0:00:43]}  f4 {[%clk 0:00:39]} 27. Qf3 {[%clk 0:00:34]}  fxg3 {[%clk 0:00:37]} 28. hxg3 {[%clk 0:00:35]}  Qe7 {[%clk 0:00:25]} 29. Kg2 {[%clk 0:00:32]}  Rd6 {[%clk 0:00:25]} 30. Qe2 {[%clk 0:00:28]}  Qxe2 {[%clk 0:00:19]} 31. Bxe2 {[%clk 0:00:29]}  Bc5 {[%clk 0:00:19]} 32. Rc1 {[%clk 0:00:23]}  Bb6 {[%clk 0:00:19]} 33. Rc2 {[%clk 0:00:22]}  f5 {[%clk 0:00:18]} 34. b4 {[%clk 0:00:20]}  Rd4 {[%clk 0:00:18]} 35. Bc4 {[%clk 0:00:21]}  f4 {[%clk 0:00:16]} 36. a4 {[%clk 0:00:21]}  fxg3 {[%clk 0:00:16]} 37. a5 {[%clk 0:00:18]}  Bd8 {[%clk 0:00:14]} 38. fxg3 {[%clk 0:00:17]}  Kh6 {[%clk 0:00:13]} 39. Bf7 {[%clk 0:00:12]}  Rxb4 {[%clk 0:00:11]} 40. Rc6 {[%clk 0:00:13]}  Rg4 {[%clk 0:00:11]} 41. a6 {[%clk 0:00:11]}  Bb6 {[%clk 0:00:08]} 42. Kf3 {[%clk 0:00:09]}  Rg5 {[%clk 0:00:08]} 43. Be8 {[%clk 0:00:08]}  Kg7 {[%clk 0:00:07]} 44. Kf4 {[%clk 0:00:08]}  Rf5+ {[%clk 0:00:06]} 45. Ke4 {[%clk 0:00:09]}  Rg5 {[%clk 0:00:06]} 46. Kf4 {[%clk 0:00:09]}  Rg4+ {[%clk 0:00:07]} 47. Kf3 {[%clk 0:00:10]}  Bd4 {[%clk 0:00:06]} 48. Rd6 {[%clk 0:00:08]}  Rxg3+ {[%clk 0:00:04]} 49. Ke4 {[%clk 0:00:05]}  Rg4+ {[%clk 0:00:04]} 50. Kd5 {[%clk 0:00:04]}  Bf2 {[%clk 0:00:03]} 51. Rd7+ {[%clk 0:00:03]}  Kh6 {[%clk 0:00:03]} 52. Kc6 {[%clk 0:00:03]}  Rb4 {[%clk 0:00:02]} 53. Rd6 {[%clk 0:00:01]}  Rb6+ {[%clk 0:00:02]} 54. Kd5 {[%clk 0:00:02]}  Rxd6+ {[%clk 0:00:03]} 55. Kxd6 {[%clk 0:00:03]}  g5 {[%clk 0:00:03]} 56. Ke5 {[%clk 0:00:03]}  g4 {[%clk 0:00:03]} 57. Kf4 {[%clk 0:00:04]}  Bc5 {[%clk 0:00:03]} 58. Bc6 {[%clk 0:00:04]}  Bd6+ {[%clk 0:00:03]} 59. Ke3 {[%clk 0:00:05]}  Kg5 {[%clk 0:00:04]} 60. Kf2 {[%clk 0:00:06]}  h4 {[%clk 0:00:04]} 61. Kg2 {[%clk 0:00:05]}  h3+ {[%clk 0:00:04]} 62. Kf2 {[%clk 0:00:06]}  Kh4 {[%clk 0:00:04]} 63. Bb7 {[%clk 0:00:05]}  Bc5+ {[%clk 0:00:04]} 64. Kf1 {[%clk 0:00:05]}  g3 {[%clk 0:00:05]} 65. Bc6 {[%clk 0:00:06]}  Kg5 {[%clk 0:00:05]} 66. Bd5 {[%clk 0:00:05]}  Kf6 {[%clk 0:00:05]} 67. Bc6 {[%clk 0:00:06]}  Ke5 {[%clk 0:00:05]} 0-1


[Site "https://www.chess.com"]

[Event "Titled Tuesday Blitz November 16 2021"]
[White "Shimelkov, Vasiliy"]
[Black "Bortnyk, Olexandr"]
[WhiteFideId "13701630"]
[BlackFideId "14120828"]
[WhiteElo "2073"]
[BlackElo "2723"]
[Result "0-1"]
[Round "07"]
[TimeControl "180+1"]
[Date "2021.11.16"]
[WhiteClock "0:00:04"]
[BlackClock "0:00:11"]

1. d4 {[%clk 0:03:00]}  Nf6 {[%clk 0:02:58]} 2. c4 {[%clk 0:03:00]}  d6 {[%clk 0:02:46]} 3. Nf3 {[%clk 0:02:58]}  g6 {[%clk 0:02:45]} 4. Nc3 {[%clk 0:02:56]}  Bf5 {[%clk 0:02:45]} 5. g3 {[%clk 0:02:51]}  Bg7 {[%clk 0:02:45]} 6. Bg2 {[%clk 0:02:48]}  O-O {[%clk 0:02:45]} 7. O-O {[%clk 0:02:46]}  Ne4 {[%clk 0:02:44]} 8. Nh4 {[%clk 0:02:41]}  Nxc3 {[%clk 0:02:42]} 9. bxc3 {[%clk 0:02:39]}  Bc8 {[%clk 0:02:43]} 10. a4 {[%clk 0:02:26]}  c5 {[%clk 0:02:34]} 11. a5 {[%clk 0:02:18]}  a6 {[%clk 0:02:09]} 12. Ba3 {[%clk 0:02:07]}  Qxa5 {[%clk 0:01:55]} 13. Bxc5 {[%clk 0:01:42]}  Qxc3 {[%clk 0:01:55]} 14. Rc1 {[%clk 0:01:40]}  Qa5 {[%clk 0:01:54]} 15. Ra1 {[%clk 0:01:36]}  Qc7 {[%clk 0:01:54]} 16. Ba3 {[%clk 0:01:29]}  Qxc4 {[%clk 0:01:54]} 17. e3 {[%clk 0:01:22]}  Nc6 {[%clk 0:01:44]} 18. Qb1 {[%clk 0:01:10]}  Qb5 {[%clk 0:01:18]} 19. Qc2 {[%clk 0:01:04]}  g5 {[%clk 0:01:13]} 20. Rfb1 {[%clk 0:00:55]}  Qa5 {[%clk 0:01:10]} 21. Nf3 {[%clk 0:00:48]}  Qf5 {[%clk 0:01:09]} 22. Qxf5 {[%clk 0:00:38]}  Bxf5 {[%clk 0:01:07]} 23. Rxb7 {[%clk 0:00:38]}  h6 {[%clk 0:01:02]} 24. Nd2 {[%clk 0:00:35]}  Rfc8 {[%clk 0:01:01]} 25. Rc1 {[%clk 0:00:30]}  Nxd4 {[%clk 0:00:50]} 26. exd4 {[%clk 0:00:27]}  Rxc1+ {[%clk 0:00:49]} 27. Bxc1 {[%clk 0:00:27]}  Bxd4 {[%clk 0:00:47]} 28. Rxe7 {[%clk 0:00:26]}  Rc8 {[%clk 0:00:45]} 29. Nb3 {[%clk 0:00:24]}  Bf6 {[%clk 0:00:43]} 30. Re1 {[%clk 0:00:24]}  a5 {[%clk 0:00:42]} 31. Ba3 {[%clk 0:00:21]}  a4 {[%clk 0:00:40]} 32. Nd2 {[%clk 0:00:21]}  Bc3 {[%clk 0:00:37]} 33. Re2 {[%clk 0:00:21]}  Bd3 {[%clk 0:00:28]} 34. Re3 {[%clk 0:00:19]}  Bc2 {[%clk 0:00:28]} 35. Nf3 {[%clk 0:00:16]}  d5 {[%clk 0:00:24]} 36. h4 {[%clk 0:00:15]}  d4 {[%clk 0:00:24]} 37. Nxd4 {[%clk 0:00:14]}  Bxd4 {[%clk 0:00:25]} 38. Re7 {[%clk 0:00:14]}  gxh4 {[%clk 0:00:24]} 39. gxh4 {[%clk 0:00:13]}  Bb3 {[%clk 0:00:20]} 40. Bh3 {[%clk 0:00:11]}  Rc2 {[%clk 0:00:18]} 41. Re8+ {[%clk 0:00:11]}  Kg7 {[%clk 0:00:18]} 42. Bf8+ {[%clk 0:00:09]}  Kg6 {[%clk 0:00:19]} 43. h5+ {[%clk 0:00:08]}  Kxh5 {[%clk 0:00:19]} 44. Kg2 {[%clk 0:00:06]}  Bd5+ {[%clk 0:00:16]} 45. Kg3 {[%clk 0:00:06]}  Bxf2+ {[%clk 0:00:13]} 46. Kf4 {[%clk 0:00:06]}  Rc4+ {[%clk 0:00:14]} 47. Kf5 {[%clk 0:00:04]}  Be6+ {[%clk 0:00:14]} 48. Kf6 {[%clk 0:00:05]}  Bxh3 {[%clk 0:00:14]} 49. Re5+ {[%clk 0:00:05]}  Kg4 {[%clk 0:00:12]} 50. Bxh6 {[%clk 0:00:04]}  Bd4 {[%clk 0:00:11]} 0-1


[Site "https://www.chess.com"]

[Event "Titled Tuesday Blitz November 16 2021"]
[White "Shipov, Sergei"]
[Black "Ghazarian, Kirk"]
[WhiteFideId "4113624"]
[BlackFideId "30908604"]
[WhiteElo "2783"]
[BlackElo "2003"]
[Result "0-1"]
[Round "07"]
[TimeControl "180+1"]
[Date "2021.11.16"]
[WhiteClock "0:00:05"]
[BlackClock "0:00:03"]

1. d4 {[%clk 0:03:00]}  Nf6 {[%clk 0:02:58]} 2. c4 {[%clk 0:03:01]}  c6 {[%clk 0:02:58]} 3. Nc3 {[%clk 0:03:00]}  d5 {[%clk 0:02:56]} 4. Nf3 {[%clk 0:03:01]}  a6 {[%clk 0:02:52]} 5. h3 {[%clk 0:03:00]}  b5 {[%clk 0:02:44]} 6. c5 {[%clk 0:02:59]}  g6 {[%clk 0:02:42]} 7. Bf4 {[%clk 0:02:57]}  Bg7 {[%clk 0:02:42]} 8. e3 {[%clk 0:02:55]}  Bf5 {[%clk 0:02:34]} 9. g4 {[%clk 0:02:50]}  Be6 {[%clk 0:02:26]} 10. Bd3 {[%clk 0:02:47]}  Nbd7 {[%clk 0:02:23]} 11. b4 {[%clk 0:02:47]}  O-O {[%clk 0:01:57]} 12. a4 {[%clk 0:02:46]}  a5 {[%clk 0:01:46]} 13. axb5 {[%clk 0:02:42]}  axb4 {[%clk 0:01:46]} 14. bxc6 {[%clk 0:01:36]}  Nxc5 {[%clk 0:01:40]} 15. dxc5 {[%clk 0:01:35]}  bxc3 {[%clk 0:01:39]} 16. c7 {[%clk 0:01:31]}  Rxa1 {[%clk 0:01:28]} 17. Qxa1 {[%clk 0:01:27]}  Qc8 {[%clk 0:01:24]} 18. O-O {[%clk 0:01:22]}  Ne4 {[%clk 0:01:19]} 19. Qa5 {[%clk 0:00:58]}  Bxg4 {[%clk 0:01:12]} 20. Nh2 {[%clk 0:00:30]}  Bxh3 {[%clk 0:01:06]} 21. Rb1 {[%clk 0:00:31]}  g5 {[%clk 0:00:34]} 22. Rb8 {[%clk 0:00:30]}  Qe6 {[%clk 0:00:25]} 23. Bxg5 {[%clk 0:00:10]}  Nxg5 {[%clk 0:00:20]} 24. Be2 {[%clk 0:00:08]}  c2 {[%clk 0:00:18]} 25. Qd2 {[%clk 0:00:07]}  Ne4 {[%clk 0:00:16]} 26. Qxc2 {[%clk 0:00:07]}  Qg6+ {[%clk 0:00:14]} 27. Bg4 {[%clk 0:00:07]}  Bxg4 {[%clk 0:00:12]} 28. Nxg4 {[%clk 0:00:07]}  Qxg4+ {[%clk 0:00:13]} 29. Kf1 {[%clk 0:00:07]}  Qd7 {[%clk 0:00:06]} 30. Rxf8+ {[%clk 0:00:05]}  Bxf8 {[%clk 0:00:06]} 31. Qb3 {[%clk 0:00:05]}  Qxc7 {[%clk 0:00:05]} 32. Qxd5 {[%clk 0:00:05]}  Nf6 {[%clk 0:00:03]} 0-1


[Site "https://www.chess.com"]

[Event "Titled Tuesday Blitz November 16 2021"]
[White "Shyaamnikhil P"]
[Black "Tahbaz, Arash"]
[WhiteFideId "5024218"]
[BlackFideId "12528846"]
[WhiteElo "2300"]
[BlackElo "2377"]
[Result "0-1"]
[Round "07"]
[TimeControl "180+1"]
[Date "2021.11.16"]
[WhiteClock "0:00:03"]
[BlackClock "0:00:05"]

1. e3 {[%clk 0:03:00]}  Nf6 {[%clk 0:02:49]} 2. g4 {[%clk 0:02:58]}  d5 {[%clk 0:02:40]} 3. g5 {[%clk 0:02:56]}  Ne4 {[%clk 0:02:40]} 4. h4 {[%clk 0:02:52]}  e5 {[%clk 0:02:40]} 5. c4 {[%clk 0:02:50]}  d4 {[%clk 0:02:33]} 6. d3 {[%clk 0:02:38]}  dxe3 {[%clk 0:02:29]} 7. Bxe3 {[%clk 0:02:36]}  Bb4+ {[%clk 0:02:24]} 8. Nd2 {[%clk 0:02:34]}  Nxd2 {[%clk 0:02:21]} 9. Bxd2 {[%clk 0:02:34]}  Bxd2+ {[%clk 0:02:15]} 10. Qxd2 {[%clk 0:02:34]}  Nc6 {[%clk 0:02:16]} 11. Bg2 {[%clk 0:02:34]}  Bf5 {[%clk 0:02:16]} 12. Bxc6+ {[%clk 0:02:30]}  bxc6 {[%clk 0:02:17]} 13. O-O-O {[%clk 0:02:26]}  O-O {[%clk 0:02:17]} 14. Ne2 {[%clk 0:02:22]}  Qd6 {[%clk 0:02:15]} 15. Ng3 {[%clk 0:02:20]}  Bg4 {[%clk 0:02:15]} 16. Rde1 {[%clk 0:02:17]}  Rfd8 {[%clk 0:02:12]} 17. Re3 {[%clk 0:02:15]}  Be6 {[%clk 0:02:10]} 18. Qc3 {[%clk 0:02:07]}  a5 {[%clk 0:02:05]} 19. Rd1 {[%clk 0:01:55]}  Qd4 {[%clk 0:01:48]} 20. Qxd4 {[%clk 0:01:54]}  Rxd4 {[%clk 0:01:49]} 21. Rxe5 {[%clk 0:01:38]}  Rxh4 {[%clk 0:01:48]} 22. Rh1 {[%clk 0:01:38]}  Rxh1+ {[%clk 0:01:40]} 23. Nxh1 {[%clk 0:01:37]}  Kf8 {[%clk 0:01:39]} 24. f4 {[%clk 0:01:35]}  h5 {[%clk 0:01:24]} 25. gxh6 {[%clk 0:01:30]}  gxh6 {[%clk 0:01:25]} 26. f5 {[%clk 0:01:13]}  Bd7 {[%clk 0:01:24]} 27. f6 {[%clk 0:01:13]}  Re8 {[%clk 0:01:19]} 28. Rxe8+ {[%clk 0:01:13]}  Kxe8 {[%clk 0:01:10]} 29. Kd2 {[%clk 0:00:58]}  Bf5 {[%clk 0:01:09]} 30. Ng3 {[%clk 0:00:28]}  Bg6 {[%clk 0:01:10]} 31. Ne2 {[%clk 0:00:28]}  c5 {[%clk 0:00:55]} 32. d4 {[%clk 0:00:20]}  cxd4 {[%clk 0:00:52]} 33. Nxd4 {[%clk 0:00:21]}  Kd7 {[%clk 0:00:52]} 34. c5 {[%clk 0:00:21]}  Be4 {[%clk 0:00:36]} 35. Ke3 {[%clk 0:00:20]}  Bd5 {[%clk 0:00:37]} 36. b3 {[%clk 0:00:20]}  Ke8 {[%clk 0:00:33]} 37. Kf4 {[%clk 0:00:19]}  Kf8 {[%clk 0:00:29]} 38. a3 {[%clk 0:00:19]}  Kg8 {[%clk 0:00:25]} 39. b4 {[%clk 0:00:18]}  axb4 {[%clk 0:00:18]} 40. axb4 {[%clk 0:00:19]}  Kf8 {[%clk 0:00:10]} 41. Ke5 {[%clk 0:00:18]}  Bg2 {[%clk 0:00:10]} 42. b5 {[%clk 0:00:12]}  Ke8 {[%clk 0:00:10]} 43. c6 {[%clk 0:00:11]}  h5 {[%clk 0:00:08]} 44. Kf4 {[%clk 0:00:11]}  h4 {[%clk 0:00:09]} 45. Kg4 {[%clk 0:00:10]}  h3 {[%clk 0:00:08]} 46. Kg3 {[%clk 0:00:10]}  Kd8 {[%clk 0:00:08]} 47. Kh2 {[%clk 0:00:10]}  Kc8 {[%clk 0:00:07]} 48. Nf5 {[%clk 0:00:09]}  Bf1 {[%clk 0:00:05]} 49. Nd4 {[%clk 0:00:08]}  Kb8 {[%clk 0:00:04]} 50. Kg1 {[%clk 0:00:08]}  Bg2 {[%clk 0:00:04]} 51. Nf5 {[%clk 0:00:08]}  Ka7 {[%clk 0:00:04]} 52. Nh6 {[%clk 0:00:08]}  Bd5 {[%clk 0:00:03]} 53. Kh2 {[%clk 0:00:05]}  Be6 {[%clk 0:00:03]} 54. Ng8 {[%clk 0:00:04]}  Kb6 {[%clk 0:00:04]} 55. Ne7 {[%clk 0:00:03]}  Kxb5 {[%clk 0:00:05]} 0-1


[Site "https://www.chess.com"]

[Event "Titled Tuesday Blitz November 16 2021"]
[White "Sjugirov, Sanan"]
[Black "Tabatabaei, M. Amin"]
[WhiteFideId "4189302"]
[BlackFideId "12521213"]
[WhiteElo "2653"]
[BlackElo "2555"]
[Result "0-1"]
[Round "07"]
[TimeControl "180+1"]
[Date "2021.11.16"]
[WhiteClock "0:00:01"]
[BlackClock "0:00:07"]

1. e4 {[%clk 0:03:00]}  c5 {[%clk 0:03:00]} 2. Nf3 {[%clk 0:03:00]}  d6 {[%clk 0:03:01]} 3. Bb5+ {[%clk 0:02:59]}  Nd7 {[%clk 0:03:00]} 4. d4 {[%clk 0:02:59]}  cxd4 {[%clk 0:03:01]} 5. O-O {[%clk 0:02:59]}  a6 {[%clk 0:02:56]} 6. Bxd7+ {[%clk 0:02:59]}  Bxd7 {[%clk 0:02:57]} 7. Qxd4 {[%clk 0:02:58]}  Nf6 {[%clk 0:02:53]} 8. Bg5 {[%clk 0:02:53]}  e6 {[%clk 0:02:54]} 9. Nbd2 {[%clk 0:02:45]}  Rc8 {[%clk 0:02:33]} 10. Rfd1 {[%clk 0:02:42]}  Bb5 {[%clk 0:02:20]} 11. c4 {[%clk 0:02:28]}  Bc6 {[%clk 0:02:20]} 12. e5 {[%clk 0:02:26]}  dxe5 {[%clk 0:02:19]} 13. Qxd8+ {[%clk 0:02:26]}  Rxd8 {[%clk 0:02:20]} 14. Nxe5 {[%clk 0:02:26]}  Rc8 {[%clk 0:02:11]} 15. Nxc6 {[%clk 0:02:23]}  Rxc6 {[%clk 0:02:11]} 16. b3 {[%clk 0:02:21]}  h6 {[%clk 0:02:07]} 17. Bh4 {[%clk 0:01:59]}  Bc5 {[%clk 0:01:59]} 18. Ne4 {[%clk 0:01:44]}  Be7 {[%clk 0:01:57]} 19. Nxf6+ {[%clk 0:01:37]}  Bxf6 {[%clk 0:01:57]} 20. Bxf6 {[%clk 0:01:37]}  gxf6 {[%clk 0:01:58]} 21. Rd4 {[%clk 0:01:31]}  Ke7 {[%clk 0:01:58]} 22. Rad1 {[%clk 0:01:30]}  Rc7 {[%clk 0:01:58]} 23. g3 {[%clk 0:01:18]}  h5 {[%clk 0:01:59]} 24. Kg2 {[%clk 0:01:15]}  f5 {[%clk 0:01:59]} 25. Kh3 {[%clk 0:01:09]}  b5 {[%clk 0:01:58]} 26. cxb5 {[%clk 0:01:08]}  axb5 {[%clk 0:01:59]} 27. R1d2 {[%clk 0:01:07]}  Kf6 {[%clk 0:01:56]} 28. a4 {[%clk 0:01:06]}  bxa4 {[%clk 0:01:46]} 29. bxa4 {[%clk 0:01:07]}  Rc3 {[%clk 0:01:38]} 30. Rh4 {[%clk 0:00:59]}  Ra3 {[%clk 0:01:34]} 31. Kg2 {[%clk 0:00:57]}  Kg5 {[%clk 0:01:28]} 32. Rd7 {[%clk 0:00:56]}  Kg6 {[%clk 0:01:23]} 33. Rd2 {[%clk 0:00:47]}  Ra8 {[%clk 0:01:20]} 34. Rdd4 {[%clk 0:00:42]}  Ra2 {[%clk 0:01:18]} 35. h3 {[%clk 0:00:30]}  Kg5 {[%clk 0:01:17]} 36. Rd7 {[%clk 0:00:26]}  Kg6 {[%clk 0:01:09]} 37. Rdd4 {[%clk 0:00:25]}  e5 {[%clk 0:00:32]} 38. Rb4 {[%clk 0:00:25]}  Rd8 {[%clk 0:00:28]} 39. Rb1 {[%clk 0:00:09]}  Rdd2 {[%clk 0:00:28]} 40. Rf1 {[%clk 0:00:10]}  Kg5 {[%clk 0:00:20]} 41. Rb4 {[%clk 0:00:09]}  f6 {[%clk 0:00:20]} 42. h4+ {[%clk 0:00:08]}  Kg6 {[%clk 0:00:21]} 43. Rc4 {[%clk 0:00:07]}  e4 {[%clk 0:00:19]} 44. Rc3 {[%clk 0:00:02]}  Rxa4 {[%clk 0:00:19]} 45. Rc8 {[%clk 0:00:02]}  Raa2 {[%clk 0:00:19]} 46. Re8 {[%clk 0:00:03]}  Kf7 {[%clk 0:00:18]} 47. Rc8 {[%clk 0:00:02]}  e3 {[%clk 0:00:18]} 48. Rc3 {[%clk 0:00:02]}  e2 {[%clk 0:00:11]} 49. Rc7+ {[%clk 0:00:02]}  Ke6 {[%clk 0:00:06]} 50. Rb1 {[%clk 0:00:01]}  Rd1 {[%clk 0:00:06]} 51. Rb6+ {[%clk 0:00:01]}  Kd5 {[%clk 0:00:06]} 52. Rd7+ {[%clk 0:00:01]}  Kc5 {[%clk 0:00:07]} 0-1


[Site "https://www.chess.com"]

[Event "Titled Tuesday Blitz November 16 2021"]
[White "Stoyanov, Tsvetan"]
[Black "Antipov, Mikhail Al."]
[WhiteFideId "2917173"]
[BlackFideId "4107012"]
[WhiteElo "2191"]
[BlackElo "2587"]
[Result "0-1"]
[Round "07"]
[TimeControl "180+1"]
[Date "2021.11.16"]
[WhiteClock "0:00:03"]
[BlackClock "0:00:05"]

1. e4 {[%clk 0:03:00]}  c5 {[%clk 0:02:59]} 2. Nf3 {[%clk 0:03:00]}  d6 {[%clk 0:02:59]} 3. Bb5+ {[%clk 0:02:58]}  Nc6 {[%clk 0:02:57]} 4. O-O {[%clk 0:02:57]}  Bd7 {[%clk 0:02:57]} 5. d4 {[%clk 0:02:51]}  cxd4 {[%clk 0:02:54]} 6. Nxd4 {[%clk 0:02:50]}  Nf6 {[%clk 0:02:53]} 7. Nc3 {[%clk 0:02:49]}  e5 {[%clk 0:02:44]} 8. Nxc6 {[%clk 0:02:49]}  bxc6 {[%clk 0:02:44]} 9. Bc4 {[%clk 0:02:47]}  Be7 {[%clk 0:02:44]} 10. Kh1 {[%clk 0:02:41]}  O-O {[%clk 0:02:43]} 11. f4 {[%clk 0:02:40]}  exf4 {[%clk 0:01:45]} 12. Bxf4 {[%clk 0:02:40]}  Be6 {[%clk 0:01:45]} 13. Bxe6 {[%clk 0:02:28]}  fxe6 {[%clk 0:01:46]} 14. e5 {[%clk 0:02:28]}  Nd5 {[%clk 0:01:38]} 15. exd6 {[%clk 0:02:21]}  Bxd6 {[%clk 0:01:37]} 16. Bxd6 {[%clk 0:02:18]}  Qxd6 {[%clk 0:01:38]} 17. Qd3 {[%clk 0:02:09]}  Qb4 {[%clk 0:01:25]} 18. Ne4 {[%clk 0:01:49]}  h6 {[%clk 0:00:30]} 19. c4 {[%clk 0:01:43]}  Nf4 {[%clk 0:00:26]} 20. Qe3 {[%clk 0:01:24]}  Qxb2 {[%clk 0:00:24]} 21. Qf2 {[%clk 0:00:47]}  Qxf2 {[%clk 0:00:17]} 22. Rxf2 {[%clk 0:00:48]}  Rad8 {[%clk 0:00:15]} 23. Nc5 {[%clk 0:00:45]}  Rd4 {[%clk 0:00:13]} 24. Raf1 {[%clk 0:00:36]}  Rxc4 {[%clk 0:00:09]} 25. Nd7 {[%clk 0:00:30]}  Rf5 {[%clk 0:00:07]} 26. g3 {[%clk 0:00:28]}  Rd5 {[%clk 0:00:07]} 27. Nb8 {[%clk 0:00:17]}  Nh3 {[%clk 0:00:04]} 28. Rf8+ {[%clk 0:00:17]}  Kh7 {[%clk 0:00:05]} 29. R8f7 {[%clk 0:00:16]}  Rc2 {[%clk 0:00:04]} 30. Nd7 {[%clk 0:00:11]}  Rdd2 {[%clk 0:00:02]} 31. Nf6+ {[%clk 0:00:11]}  Kg6 {[%clk 0:00:03]} 32. Ng4 {[%clk 0:00:11]}  h5 {[%clk 0:00:01]} 33. Ne5+ {[%clk 0:00:08]}  Kh7 {[%clk 0:00:02]} 34. Nf3 {[%clk 0:00:07]}  Rf2 {[%clk 0:00:02]} 35. Rxf2 {[%clk 0:00:06]}  Rxf2 {[%clk 0:00:03]} 36. Ng5+ {[%clk 0:00:04]}  Kg6 {[%clk 0:00:03]} 37. Rxf2 {[%clk 0:00:03]}  Nxf2+ {[%clk 0:00:04]} 38. Kg2 {[%clk 0:00:03]}  Kxg5 {[%clk 0:00:05]} 0-1


[Site "https://www.chess.com"]

[Event "Titled Tuesday Blitz November 16 2021"]
[White "Svane, Frederik"]
[Black "Yanchenko, Roman"]
[WhiteFideId "12923044"]
[BlackFideId "4137329"]
[WhiteElo "2459"]
[BlackElo "2514"]
[Result "0-1"]
[Round "07"]
[TimeControl "180+1"]
[Date "2021.11.16"]
[WhiteClock "0:00:06"]
[BlackClock "0:00:13"]

1. e4 {[%clk 0:03:00]}  e6 {[%clk 0:03:00]} 2. d4 {[%clk 0:03:01]}  d5 {[%clk 0:03:01]} 3. Nd2 {[%clk 0:03:01]}  c5 {[%clk 0:03:00]} 4. exd5 {[%clk 0:03:02]}  exd5 {[%clk 0:03:01]} 5. Ngf3 {[%clk 0:03:02]}  Nc6 {[%clk 0:03:02]} 6. Bb5 {[%clk 0:03:02]}  c4 {[%clk 0:03:02]} 7. O-O {[%clk 0:03:01]}  Bd6 {[%clk 0:03:03]} 8. b3 {[%clk 0:02:59]}  cxb3 {[%clk 0:03:04]} 9. axb3 {[%clk 0:02:58]}  Ne7 {[%clk 0:03:04]} 10. Re1 {[%clk 0:02:52]}  O-O {[%clk 0:03:04]} 11. Bb2 {[%clk 0:02:49]}  Bf5 {[%clk 0:03:03]} 12. Nf1 {[%clk 0:02:47]}  Rc8 {[%clk 0:02:57]} 13. Ne3 {[%clk 0:02:45]}  Be4 {[%clk 0:02:56]} 14. c4 {[%clk 0:02:14]}  a6 {[%clk 0:02:54]} 15. Bxc6 {[%clk 0:02:05]}  Nxc6 {[%clk 0:02:55]} 16. Nd2 {[%clk 0:01:47]}  Nb4 {[%clk 0:02:44]} 17. Nxe4 {[%clk 0:01:39]}  dxe4 {[%clk 0:02:45]} 18. Qg4 {[%clk 0:00:37]}  Nd3 {[%clk 0:02:45]} 19. Re2 {[%clk 0:00:34]}  Nxb2 {[%clk 0:02:40]} 20. Rxb2 {[%clk 0:00:34]}  Re8 {[%clk 0:02:39]} 21. Rd1 {[%clk 0:00:33]}  g6 {[%clk 0:02:37]} 22. c5 {[%clk 0:00:30]}  Bf8 {[%clk 0:02:34]} 23. b4 {[%clk 0:00:30]}  Bg7 {[%clk 0:02:33]} 24. Rbd2 {[%clk 0:00:29]}  f5 {[%clk 0:02:34]} 25. Qf4 {[%clk 0:00:30]}  Bf6 {[%clk 0:02:29]} 26. Nc4 {[%clk 0:00:24]}  Bg5 {[%clk 0:02:26]} 27. Qd6 {[%clk 0:00:19]}  Bxd2 {[%clk 0:02:21]} 28. Rxd2 {[%clk 0:00:19]}  Rc6 {[%clk 0:02:21]} 29. Qxd8 {[%clk 0:00:18]}  Rxd8 {[%clk 0:02:21]} 30. d5 {[%clk 0:00:18]}  Rf6 {[%clk 0:02:20]} 31. Kf1 {[%clk 0:00:16]}  f4 {[%clk 0:01:58]} 32. Ke2 {[%clk 0:00:16]}  g5 {[%clk 0:01:54]} 33. Rd4 {[%clk 0:00:15]}  Kg7 {[%clk 0:01:52]} 34. Na5 {[%clk 0:00:09]}  Rf7 {[%clk 0:01:39]} 35. d6 {[%clk 0:00:10]}  f3+ {[%clk 0:01:39]} 36. gxf3 {[%clk 0:00:08]}  exf3+ {[%clk 0:01:38]} 37. Kd3 {[%clk 0:00:08]}  h5 {[%clk 0:01:37]} 38. c6 {[%clk 0:00:05]}  bxc6 {[%clk 0:01:34]} 39. Nxc6 {[%clk 0:00:06]}  Rdd7 {[%clk 0:01:17]} 40. Ne5 {[%clk 0:00:06]}  Kf6 {[%clk 0:01:14]} 41. Nxf7 {[%clk 0:00:06]}  Kxf7 {[%clk 0:01:14]} 42. Kc4 {[%clk 0:00:05]}  Ke6 {[%clk 0:01:12]} 43. Kc5 {[%clk 0:00:06]}  Rd8 {[%clk 0:01:11]} 44. Kc6 {[%clk 0:00:05]}  Rc8+ {[%clk 0:01:11]} 45. Kb7 {[%clk 0:00:05]}  Kd7 {[%clk 0:01:11]} 46. Kxa6 {[%clk 0:00:03]}  Rc2 {[%clk 0:01:11]} 47. b5 {[%clk 0:00:02]}  Ra2+ {[%clk 0:01:09]} 48. Kb6 {[%clk 0:00:02]}  Rxf2 {[%clk 0:01:10]} 49. Rd5 {[%clk 0:00:03]}  g4 {[%clk 0:00:54]} 50. Rxh5 {[%clk 0:00:03]}  Kxd6 {[%clk 0:00:48]} 51. Ka7 {[%clk 0:00:03]}  Ra2+ {[%clk 0:00:47]} 52. Kb7 {[%clk 0:00:03]}  Ke6 {[%clk 0:00:34]} 53. Rh8 {[%clk 0:00:04]}  Ke7 {[%clk 0:00:32]} 54. Rh5 {[%clk 0:00:03]}  Kf6 {[%clk 0:00:30]} 55. Rh8 {[%clk 0:00:03]}  Ke7 {[%clk 0:00:22]} 56. Rh5 {[%clk 0:00:02]}  Rg2 {[%clk 0:00:15]} 57. b6 {[%clk 0:00:02]}  f2 {[%clk 0:00:15]} 58. Rf5 {[%clk 0:00:02]}  Rxh2 {[%clk 0:00:15]} 59. Kc7 {[%clk 0:00:03]}  g3 {[%clk 0:00:15]} 60. b7 {[%clk 0:00:03]}  Rh8 {[%clk 0:00:15]} 61. Rf3 {[%clk 0:00:03]}  g2 {[%clk 0:00:15]} 62. Rxf2 {[%clk 0:00:03]}  g1=Q {[%clk 0:00:15]} 63. Re2+ {[%clk 0:00:03]}  Kf6 {[%clk 0:00:15]} 64. Rc2 {[%clk 0:00:02]}  Qg3+ {[%clk 0:00:14]} 65. Kb6 {[%clk 0:00:03]}  Qb3+ {[%clk 0:00:13]} 66. Ka7 {[%clk 0:00:03]}  Qxc2 {[%clk 0:00:13]} 67. Ka6 {[%clk 0:00:03]}  Qa4+ {[%clk 0:00:13]} 68. Kb6 {[%clk 0:00:04]}  Rb8 {[%clk 0:00:13]} 69. Kc7 {[%clk 0:00:05]}  Qa7 {[%clk 0:00:13]} 70. Kc6 {[%clk 0:00:05]}  Rxb7 {[%clk 0:00:13]} 71. Kd6 {[%clk 0:00:06]} 0-1


[Site "https://www.chess.com"]